fUSD/lending_fUSD_20240708
["ID","MTS","AMOUNT","RATE_DAILY","PERIOD"]
[331467429,1720427873542,-342.71230844,0.00034099,47]
[331467430,1720427873585,-2007.19,0.00034099,30]
[331467431,1720427873628,-1586.98,0.00034099,39]
[331467432,1720427873669,-3616.95,0.00034099,44]
[331467433,1720427873712,-2007.19,0.00034099,31]
[331467434,1720427873756,-500.0,0.00034099,30]
[331467435,1720427873801,-2007.19,0.00034099,32]
[331467436,1720427873847,-3616.95,0.00034099,45]
[331467437,1720427873894,-500.0,0.00034099,31]
[331467438,1720427873947,-1586.98,0.00034099,40]
[331467439,1720427873996,-3616.95,0.00034099,46]
[331467440,1720427874045,-500.0,0.00034099,32]
[331467441,1720427874093,-1586.98,0.00034099,41]
[331467442,1720427874142,-3616.95,0.00034099,47]
[331467443,1720427874190,-500.0,0.00034099,33]
[331467444,1720427874239,-1586.98,0.00034099,42]
[331467445,1720427874290,-3616.95,0.00034099,48]
[331467446,1720427874338,-500.0,0.00034099,34]
[331467447,1720427874392,-1586.98,0.00034099,43]
[331467448,1720427874438,-593.49100064,0.00034099,30]
[331467449,1720427874482,-500.0,0.00034099,35]
[331467450,1720427874526,-1586.98,0.00034099,44]
[331467451,1720427874569,-3616.95,0.00034099,49]
[331467452,1720427874616,-2007.19,0.00034099,33]
[331467453,1720427874663,-500.0,0.00034099,36]
[331467454,1720427874715,-1586.98,0.00034099,45]
[331467455,1720427874761,-3616.95,0.00034099,50]
[331467456,1720427874805,-2007.19,0.00034099,34]
[331467457,1720427874849,-500.0,0.00034099,37]
[331467458,1720427874892,-3616.95,0.00034099,51]
[331467459,1720427874939,-2007.19,0.00034099,35]
[331467460,1720427874986,-500.0,0.00034099,38]
[331467461,1720427875036,-1586.98,0.00034099,46]
[331467462,1720427875084,-3616.95,0.00034099,52]
[331467463,1720427875135,-500.0,0.00034099,39]
[331467464,1720427875184,-1586.98,0.00034099,47]
[331467465,1720427875234,-3617.12002693,0.00034099,53]
[331467466,1720427875286,-500.0,0.00034099,40]
[331467467,1720427875335,-1586.98,0.00034099,48]
[331467468,1720427875386,-500.0,0.00034099,41]
[331467469,1720427875434,-2007.19,0.00034099,36]
[331467470,1720427875479,-1586.98,0.00034099,49]
[331467471,1720427875524,-500.0,0.00034099,30]
[331467472,1720427875570,-500.0,0.00034099,42]
[331467473,1720427875616,-2007.19,0.00034099,37]
[331467474,1720427875660,-1586.98,0.00034099,50]
[331467475,1720427875704,-500.0,0.00034099,43]
[331467476,1720427875748,-500.0,0.00034099,31]
[331467477,1720427875790,-500.0,0.00034099,32]
[331467478,1720427875833,-500.0,0.00034099,44]
[331467479,1720427875876,-1586.98,0.00034099,51]
[331467480,1720427875923,-507.53835302,0.00034099,33]
[331467481,1720427875971,-500.0,0.00034099,45]
[331467482,1720427876017,-1586.98,0.00034099,52]
[331467483,1720427876062,-221.52632343,0.00034099,46]
[331467484,1720427876108,-1587.13269035,0.00034099,53]
[331467485,1720427876154,-999.89,0.00034099,30]
[331467486,1720427876200,-504.52430035,0.00034099,30]
[331467487,1720427876246,-999.89,0.00034099,31]
[331467488,1720427876293,-999.89,0.00034099,32]
[331467489,1720427876559,-2097.73,0.00034099,30]
[331467490,1720427876607,-2097.73,0.00034099,31]
[331467491,1720427876655,-2097.73,0.00034099,32]
[331467492,1720427876701,-2097.73,0.00034099,33]
[331467493,1720427876747,-999.89,0.00034099,33]
[331467494,1720427876797,-2097.73,0.00034099,34]
[331467495,1720427876842,-999.89,0.00034099,34]
[331467496,1720427876892,-500.0,0.00034099,30]
[331467497,1720427876942,-2097.73,0.00034099,35]
[331467498,1720427876997,-500.0,0.00034099,30]
[331467499,1720427877050,-999.89,0.00034099,35]
[331467500,1720427877102,-500.0,0.00034099,31]
[331467501,1720427877154,-2097.73,0.00034099,36]
[331467502,1720427877207,-500.0,0.00034099,31]
[331467503,1720427877257,-999.89,0.00034099,36]
[331467505,1720427877306,-500.0,0.00034099,32]
[331467506,1720427877355,-2097.73,0.00034099,37]
[331467507,1720427877402,-2007.19,0.00034099,38]
[331467508,1720427877447,-502.30730478,0.00034099,32]
[331467509,1720427877492,-500.0,0.00034099,33]
[331467510,1720427877538,-686.31,0.00034099,30]
[331467511,1720427877584,-2097.73,0.00034099,38]
[331467512,1720427877632,-500.0,0.00034099,34]
[331467513,1720427877677,-686.31,0.00034099,31]
[331467514,1720427877720,-2097.73,0.00034099,39]
[331467515,1720427877765,-500.0,0.00034099,30]
[331467516,1720427877811,-500.0,0.00034099,35]
[331467517,1720427877855,-500.0,0.00034099,31]
[331467518,1720427877902,-2097.73,0.00034099,40]
[331467519,1720427877955,-686.31,0.00034099,32]
[331467520,1720427878001,-500.0,0.00034099,36]
[331467521,1720427878046,-2097.73,0.00034099,41]
[331467522,1720427878095,-686.31,0.00034099,33]
[331467523,1720427878146,-2097.73,0.00034099,42]
[331467524,1720427878197,-686.31,0.00034099,34]
[331467525,1720427878244,-500.0,0.00034099,30]
[331467526,1720427878290,-500.0,0.00034099,37]
[331467527,1720427878335,-2097.73,0.00034099,43]
[331467528,1720427878379,-686.31,0.00034099,35]
[331467529,1720427878422,-500.0,0.00034099,31]
[331467530,1720427878465,-2097.73,0.00034099,44]
[331467531,1720427878507,-686.31,0.00034099,36]
[331467532,1720427878548,-500.0,0.00034099,32]
[331467533,1720427878591,-2097.73,0.00034099,45]
[331467534,1720427878635,-686.31,0.00034099,37]
[331467535,1720427878676,-255.53244384,0.00034099,38]
[331467536,1720427878717,-500.0,0.00034099,33]
[331467537,1720427878758,-500.0,0.00034099,30]
[331467538,1720427878799,-686.31,0.00034099,38]
[331467539,1720427878844,-500.0,0.00034099,34]
[331467540,1720427878889,-500.0,0.00034099,31]
[331467541,1720427878933,-2097.73,0.00034099,46]
[331467542,1720427878979,-686.31,0.00034099,39]
[331467543,1720427879025,-500.0,0.00034099,35]
[331467544,1720427879071,-500.0,0.00034099,32]
[331467545,1720427879118,-686.31,0.00034099,40]
[331467546,1720427879166,-2097.73,0.00034099,47]
[331467547,1720427879212,-500.0,0.00034099,36]
[331467548,1720427879258,-500.0,0.00034099,33]
[331467549,1720427879302,-999.89,0.00034099,37]
[331467550,1720427879347,-686.31,0.00034099,41]
[331467551,1720427879392,-500.0,0.00034099,32]
[331467552,1720427879437,-2097.73,0.00034099,48]
[331467553,1720427879481,-543.43427958,0.00034099,37]
[331467554,1720427879526,-686.31,0.00034099,42]
[331467555,1720427879571,-2097.73,0.00034099,49]
[331467556,1720427879616,-999.89,0.00034099,38]
[331467557,1720427879666,-500.0,0.00034099,33]
[331467558,1720427879711,-2007.19,0.00034099,39]
[331467559,1720427879755,-686.31,0.00034099,43]
[331467560,1720427879799,-2097.73,0.00034099,50]
[331467561,1720427879844,-999.89,0.00034099,39]
[331467562,1720427879890,-2007.19,0.00034099,40]
[331467563,1720427879937,-507.16852523,0.00034099,34]
[331467564,1720427879984,-500.0,0.00034099,34]
[331467565,1720427880036,-686.31,0.00034099,44]
[331467566,1720427880087,-2007.19,0.00034099,41]
[331467567,1720427880140,-2097.73,0.00034099,51]
[331467568,1720427880194,-999.89,0.00034099,40]
[331467569,1720427880247,-474.80568706,0.00034099,35]
[331467570,1720427880299,-686.31,0.00034099,45]
[331467571,1720427880352,-2097.73,0.00034099,52]
[331467572,1720427880403,-2007.19,0.00034099,42]
[331467573,1720427880454,-686.31,0.00034099,46]
[331467574,1720427880513,-2007.19,0.00034099,43]
[331467575,1720427880564,-2097.84474066,0.00034099,53]
[331467576,1720427880615,-999.89,0.00034099,41]
[331467577,1720427880666,-910.5,0.00034099,30]
[331467578,1720427880717,-686.31,0.00034099,47]
[331467579,1720427880770,-2007.19,0.00034099,44]
[331467580,1720427880822,-999.89,0.00034099,42]
[331467581,1720427880874,-686.31,0.00034099,48]
[331467582,1720427880931,-999.89,0.00034099,43]
[331467583,1720427880984,-910.5,0.00034099,31]
[331467584,1720427881036,-686.31,0.00034099,49]
[331467585,1720427881090,-2007.19,0.00034099,45]
[331467586,1720427881145,-999.89,0.00034099,44]
[331467587,1720427881199,-910.5,0.00034099,32]
[331467588,1720427881258,-686.31,0.00034099,50]
[331467589,1720427881309,-2007.19,0.00034099,46]
[331467590,1720427881361,-999.89,0.00034099,45]
[331467591,1720427881412,-910.5,0.00034099,33]
[331467592,1720427881474,-686.31,0.00034099,51]
[331467593,1720427881525,-2007.19,0.00034099,47]
[331467594,1720427881877,-686.31,0.00034099,52]
[331467595,1720427881933,-500.0,0.00034099,30]
[331467596,1720427881982,-2007.19,0.00034099,48]
[331467597,1720427882032,-999.89,0.00034099,46]
[331467598,1720427882078,-910.5,0.00034099,34]
[331467599,1720427882126,-500.0,0.00034099,30]
[331467600,1720427882176,-2007.19,0.00034099,49]
[331467601,1720427882224,-500.0,0.00034099,31]
[331467602,1720427882271,-999.89,0.00034099,47]
[331467603,1720427882318,-910.5,0.00034099,35]
[331467604,1720427882363,-686.51540594,0.00034099,53]
[331467605,1720427882408,-2007.19,0.00034099,50]
[331467606,1720427882453,-500.0,0.00034099,31]
[331467607,1720427882497,-500.0,0.00034099,32]
[331467608,1720427882544,-910.5,0.00034099,36]
[331467609,1720427882592,-999.89,0.00034099,48]
[331467610,1720427882643,-2007.19,0.00034099,51]
[331467611,1720427882691,-500.0,0.00034099,32]
[331467612,1720427882739,-500.0,0.00034099,33]
[331467613,1720427882788,-910.5,0.00034099,37]
[331467614,1720427882837,-999.89,0.00034099,49]
[331467615,1720427882889,-2007.19,0.00034099,52]
[331467616,1720427882937,-500.0,0.00034099,33]
[331467617,1720427882984,-910.5,0.00034099,38]
[331467618,1720427883034,-999.89,0.00034099,50]
[331467619,1720427883083,-2007.1901011,0.00034099,53]
[331467620,1720427883138,-236.68541785,0.00034099,34]
[331467621,1720427883188,-2751.49,0.00034099,30]
[331467622,1720427883240,-910.5,0.00034099,39]
[331467623,1720427883289,-999.89,0.00034099,51]
[331467624,1720427883338,-500.0,0.00034099,34]
[331467625,1720427883389,-2751.49,0.00034099,31]
[331467626,1720427883437,-910.5,0.00034099,40]
[331467627,1720427883486,-999.89,0.00034099,52]
[331467628,1720427883533,-500.0,0.00034099,35]
[331467629,1720427883581,-2751.49,0.00034099,32]
[331467630,1720427883631,-910.5,0.00034099,41]
[331467631,1720427883683,-500.0,0.00034099,36]
[331467632,1720427883734,-2751.49,0.00034099,33]
[331467633,1720427883783,-910.5,0.00034099,42]
[331467634,1720427883832,-500.0,0.00034099,37]
[331467635,1720427883883,-999.97,0.00034099,53]
[331467636,1720427883935,-2751.49,0.00034099,34]
[331467637,1720427883986,-345.32713592,0.00034099,38]
[331467638,1720427884052,-910.5,0.00034099,43]
[331467639,1720427884111,-2751.49,0.00034099,35]
[331467640,1720427884165,-910.5,0.00034099,44]
[331467641,1720427884218,-2751.49,0.00034099,36]
[331467642,1720427884268,-910.5,0.00034099,45]
[331467643,1720427884319,-910.5,0.00034099,46]
[331467644,1720427884368,-2751.49,0.00034099,37]
[331467645,1720427884421,-2751.49,0.00034099,38]
[331467646,1720427884470,-910.5,0.00034099,47]
[331467647,1720427884522,-1226.3,0.00034099,30]
[331467648,1720427884569,-910.5,0.00034099,48]
[331467649,1720427884618,-2751.49,0.00034099,39]
[331467650,1720427884667,-1226.3,0.00034099,31]
[331467651,1720427884718,-910.5,0.00034099,49]
[331467652,1720427884768,-2751.49,0.00034099,40]
[331467653,1720427884818,-1226.3,0.00034099,32]
[331467654,1720427884867,-910.5,0.00034099,50]
[331467655,1720427884919,-2751.49,0.00034099,41]
[331467656,1720427884967,-1226.3,0.00034099,33]
[331467657,1720427885015,-2751.49,0.00034099,42]
[331467658,1720427885065,-910.5,0.00034099,51]
[331467659,1720427885117,-1226.3,0.00034099,34]
[331467660,1720427885167,-2751.49,0.00034099,43]
[331467661,1720427885218,-910.5,0.00034099,52]
[331467662,1720427885268,-1226.3,0.00034099,35]
[331467663,1720427885317,-2751.49,0.00034099,44]
[331467664,1720427885367,-1194.49,0.00034099,30]
[331467665,1720427885418,-910.59843982,0.00034099,53]
[331467666,1720427885469,-1226.3,0.00034099,36]
[331467667,1720427885526,-2751.49,0.00034099,45]
[331467668,1720427885576,-1194.49,0.00034099,31]
[331467669,1720427885626,-1226.3,0.00034099,37]
[331467670,1720427885680,-1194.49,0.00034099,32]
[331467671,1720427885732,-2751.49,0.00034099,46]
[331467672,1720427885784,-1226.3,0.00034099,38]
[331467673,1720427885833,-2751.49,0.00034099,47]
[331467674,1720427885890,-1194.49,0.00034099,33]
[331467675,1720427885945,-1226.3,0.00034099,39]
[331467676,1720427886000,-1194.49,0.00034099,34]
[331467677,1720427886054,-2751.49,0.00034099,48]
[331467678,1720427886107,-1226.3,0.00034099,40]
[331467679,1720427886157,-500.0,0.00034099,30]
[331467680,1720427886205,-1194.49,0.00034099,35]
[331467681,1720427886254,-1226.3,0.00034099,41]
[331467682,1720427886302,-500.0,0.00034099,31]
[331467683,1720427886350,-1194.49,0.00034099,36]
[331467684,1720427886397,-2751.49,0.00034099,49]
[331467685,1720427886447,-1226.3,0.00034099,42]
[331467686,1720427886496,-1194.49,0.00034099,37]
[331467687,1720427886545,-500.0,0.00034099,32]
[331467688,1720427886590,-2751.49,0.00034099,50]
[331467689,1720427886636,-1226.3,0.00034099,43]
[331467690,1720427886687,-1194.49,0.00034099,38]
[331467691,1720427886734,-500.0,0.00034099,33]
[331467692,1720427886783,-746.5,0.00034099,30]
[331467693,1720427886837,-2751.49,0.00034099,51]
[331467694,1720427886897,-1226.3,0.00034099,44]
[331467695,1720427886958,-1194.49,0.00034099,39]
[331467696,1720427887011,-500.0,0.00034099,34]
[331467697,1720427887365,-746.5,0.00034099,31]
[331467698,1720427887418,-1226.3,0.00034099,45]
[331467699,1720427887467,-2751.49,0.00034099,52]
[331467700,1720427887516,-1194.49,0.00034099,40]
[331467701,1720427887563,-441.33386493,0.00034099,35]
[331467702,1720427887610,-746.5,0.00034099,32]
[331467703,1720427887656,-2751.71293063,0.00034099,53]
[331467704,1720427887703,-1226.3,0.00034099,46]
[331467705,1720427887748,-1194.49,0.00034099,41]
[331467706,1720427887795,-746.5,0.00034099,33]
[331467707,1720427887840,-1226.3,0.00034099,47]
[331467708,1720427887886,-746.5,0.00034099,34]
[331467709,1720427887935,-1226.3,0.00034099,48]
[331467710,1720427887981,-746.5,0.00034099,35]
[331467711,1720427888028,-1194.49,0.00034099,42]
[331467712,1720427888075,-1226.3,0.00034099,49]
[331467713,1720427888127,-746.5,0.00034099,36]
[331467714,1720427888181,-1194.49,0.00034099,43]
[331467715,1720427888230,-1226.3,0.00034099,50]
[331467716,1720427888281,-746.5,0.00034099,37]
[331467717,1720427888330,-1194.49,0.00034099,44]
[331467718,1720427888376,-1226.3,0.00034099,51]
[331467719,1720427888426,-746.5,0.00034099,38]
[331467720,1720427888471,-1194.49,0.00034099,45]
[331467721,1720427888514,-1226.3,0.00034099,52]
[331467722,1720427888562,-1194.49,0.00034099,46]
[331467723,1720427888607,-1226.37170303,0.00034099,53]
[331467724,1720427888653,-746.5,0.00034099,39]
[331467725,1720427888698,-1194.49,0.00034099,47]
[331467726,1720427888743,-746.5,0.00034099,40]
[331467727,1720427888788,-1194.49,0.00034099,48]
[331467728,1720427888835,-1194.49,0.00034099,49]
[331467729,1720427888884,-746.5,0.00034099,41]
[331467730,1720427888935,-500.0,0.00034099,30]
[331467731,1720427888981,-746.5,0.00034099,42]
[331467732,1720427889029,-1194.49,0.00034099,50]
[331467733,1720427889078,-565.17354269,0.00034099,31]
[331467734,1720427889130,-746.5,0.00034099,43]
[331467735,1720427889183,-1194.49,0.00034099,51]
[331467736,1720427889232,-500.0,0.00034099,30]
[331467737,1720427889282,-746.5,0.00034099,44]
[331467739,1720427889333,-1194.49,0.00034099,52]
[331467741,1720427889385,-746.5,0.00034099,45]
[331467743,1720427889440,-500.0,0.00034099,31]
[331467744,1720427889490,-1194.72329226,0.00034099,53]
[331467747,1720427889540,-746.5,0.00034099,46]
[331467750,1720427889589,-500.0,0.00034099,32]
[331467751,1720427889643,-746.5,0.00034099,47]
[331467752,1720427889693,-583.99692403,0.00034099,33]
[331467753,1720427889742,-602.51,0.00034099,30]
[331467754,1720427889794,-746.5,0.00034099,48]
[331467755,1720427889843,-602.51,0.00034099,31]
[331467756,1720427889896,-602.51,0.00034099,32]
[331467757,1720427889949,-746.5,0.00034099,49]
[331467758,1720427890000,-602.51,0.00034099,33]
[331467759,1720427890050,-746.5,0.00034099,50]
[331467760,1720427890101,-500.0,0.00034099,30]
[331467761,1720427890161,-746.5,0.00034099,51]
[331467762,1720427890213,-602.51,0.00034099,34]
[331467763,1720427890266,-500.0,0.00034099,31]
[331467764,1720427890318,-746.5,0.00034099,52]
[331467765,1720427890370,-602.51,0.00034099,35]
[331467766,1720427890419,-500.0,0.00034099,32]
[331467767,1720427890468,-1073.36,0.00034099,30]
[331467768,1720427890518,-602.51,0.00034099,36]
[331467769,1720427890567,-746.61723695,0.00034099,53]
[331467770,1720427890614,-352.45,0.00034099,33]
[331467771,1720427890661,-1073.36,0.00034099,31]
[331467772,1720427890711,-602.51,0.00034099,37]
[331467773,1720427890762,-834.53,0.00034099,30]
[331467774,1720427890813,-1073.36,0.00034099,32]
[331467775,1720427890865,-602.51,0.00034099,38]
[331467776,1720427890919,-834.53,0.00034099,31]
[331467777,1720427890978,-1073.36,0.00034099,33]
[331467778,1720427891032,-1073.36,0.00034099,34]
[331467779,1720427891086,-834.53,0.00034099,32]
[331467780,1720427891153,-602.51,0.00034099,39]
[331467781,1720427891207,-834.53,0.00034099,33]
[331467782,1720427891258,-1073.36,0.00034099,35]
[331467783,1720427891306,-602.51,0.00034099,40]
[331467784,1720427891352,-834.53,0.00034099,34]
[331467785,1720427891403,-1073.36,0.00034099,36]
[331467786,1720427891452,-602.51,0.00034099,41]
[331467787,1720427891499,-834.53,0.00034099,35]
[331467788,1720427891546,-1073.36,0.00034099,37]
[331467789,1720427891596,-500.0,0.00034099,30]
[331467790,1720427891650,-602.51,0.00034099,42]
[331467791,1720427891703,-834.53,0.00034099,36]
[331467792,1720427891752,-1073.36,0.00034099,38]
[331467793,1720427891798,-500.0,0.00034099,31]
[331467794,1720427891845,-3412.95,0.00034099,30]
[331467795,1720427891896,-834.53,0.00034099,37]
[331467796,1720427891946,-1073.36,0.00034099,39]
[331467797,1720427891993,-3412.95,0.00034099,31]
[331467798,1720427892044,-602.51,0.00034099,43]
[331467799,1720427892096,-3412.95,0.00034099,32]
[331467800,1720427892148,-1073.36,0.00034099,40]
[331467801,1720427892196,-834.53,0.00034099,38]
[331467802,1720427892243,-500.0,0.00034099,32]
[331467803,1720427892294,-3412.95,0.00034099,33]
[331467804,1720427892342,-500.0,0.00034099,33]
[331467805,1720427892388,-1073.36,0.00034099,41]
[331467806,1720427892439,-834.53,0.00034099,39]
[331467807,1720427892485,-500.0,0.00034099,34]
[331467808,1720427892741,-3412.95,0.00034099,34]
[331467809,1720427892790,-602.51,0.00034099,44]
[331467810,1720427892837,-1073.36,0.00034099,42]
[331467811,1720427892884,-834.53,0.00034099,40]
[331467812,1720427892934,-500.0,0.00034099,35]
[331467813,1720427892980,-3412.95,0.00034099,35]
[331467814,1720427893025,-602.51,0.00034099,45]
[331467815,1720427893070,-834.53,0.00034099,41]
[331467816,1720427893121,-1073.36,0.00034099,43]
[331467817,1720427893176,-3412.95,0.00034099,36]
[331467818,1720427893224,-500.0,0.00034099,36]
[331467819,1720427893272,-602.51,0.00034099,46]
[331467820,1720427893320,-834.53,0.00034099,42]
[331467821,1720427893366,-1073.36,0.00034099,44]
[331467822,1720427893412,-3412.95,0.00034099,37]
[331467823,1720427893457,-500.0,0.00034099,37]
[331467824,1720427893502,-834.53,0.00034099,43]
[331467825,1720427893548,-1073.36,0.00034099,45]
[331467826,1720427893595,-602.51,0.00034099,47]
[331467827,1720427893640,-500.0,0.00034099,38]
[331467828,1720427893691,-3412.95,0.00034099,38]
[331467829,1720427893743,-1073.36,0.00034099,46]
[331467830,1720427893794,-602.51,0.00034099,48]
[331467831,1720427893846,-3412.95,0.00034099,39]
[331467832,1720427893900,-834.53,0.00034099,44]
[331467833,1720427893956,-1073.36,0.00034099,47]
[331467834,1720427894006,-3412.95,0.00034099,40]
[331467835,1720427894056,-834.53,0.00034099,45]
[331467836,1720427894103,-500.0,0.00034099,39]
[331467837,1720427894152,-1073.36,0.00034099,48]
[331467838,1720427894199,-500.0,0.00034099,30]
[331467839,1720427894246,-770.09,0.00034099,30]
[331467840,1720427894291,-602.51,0.00034099,49]
[331467841,1720427894338,-3412.95,0.00034099,41]
[331467842,1720427894385,-500.0,0.00034099,40]
[331467843,1720427894437,-834.53,0.00034099,46]
[331467844,1720427894486,-500.0,0.00034099,31]
[331467845,1720427894533,-770.09,0.00034099,31]
[331467846,1720427894578,-602.51,0.00034099,50]
[331467847,1720427894623,-3412.95,0.00034099,42]
[331467848,1720427894671,-834.53,0.00034099,47]
[331467849,1720427894716,-1073.36,0.00034099,49]
[331467850,1720427894761,-500.0,0.00034099,41]
[331467851,1720427894803,-500.0,0.00034099,32]
[331467852,1720427894848,-770.09,0.00034099,32]
[331467853,1720427894894,-602.51,0.00034099,51]
[331467854,1720427894943,-3412.95,0.00034099,43]
[331467855,1720427894987,-1073.36,0.00034099,50]
[331467856,1720427895036,-834.53,0.00034099,48]
[331467857,1720427895081,-500.0,0.00034099,42]
[331467858,1720427895128,-503.99171846,0.00034099,33]
[331467859,1720427895178,-770.09,0.00034099,33]
[331467860,1720427895225,-602.51,0.00034099,52]
[331467861,1720427895273,-3412.95,0.00034099,44]
[331467862,1720427895321,-500.0,0.00034099,30]
[331467863,1720427895368,-1073.36,0.00034099,51]
[331467864,1720427895412,-834.53,0.00034099,49]
[331467865,1720427895455,-500.0,0.00034099,43]
[331467866,1720427895497,-770.09,0.00034099,34]
[331467867,1720427895539,-3412.95,0.00034099,45]
[331467868,1720427895581,-834.53,0.00034099,50]
[331467869,1720427895623,-1073.36,0.00034099,52]
[331467870,1720427895665,-500.0,0.00034099,44]
[331467871,1720427895708,-500.0,0.00034099,31]
[331467872,1720427895751,-770.09,0.00034099,35]
[331467873,1720427895794,-3412.95,0.00034099,46]
[331467874,1720427895838,-602.62704993,0.00034099,53]
[331467875,1720427895882,-1073.59042208,0.00034099,53]
[331467876,1720427895930,-834.53,0.00034099,51]
[331467877,1720427895976,-500.0,0.00034099,45]
[331467878,1720427896023,-500.0,0.00034099,32]
[331467879,1720427896070,-3412.95,0.00034099,47]
[331467880,1720427896115,-834.53,0.00034099,52]
[331467881,1720427896160,-500.0,0.00034099,46]
[331467882,1720427896205,-500.0,0.00034099,33]
[331467883,1720427896252,-770.09,0.00034099,36]
[331467884,1720427896300,-3412.95,0.00034099,48]
[331467885,1720427896346,-500.0,0.00034099,47]
[331467886,1720427896391,-834.7039644,0.00034099,53]
[331467887,1720427896441,-500.0,0.00034099,34]
[331467888,1720427896490,-3412.95,0.00034099,49]
[331467889,1720427896538,-770.09,0.00034099,37]
[331467890,1720427896582,-500.0,0.00034099,48]
[331467891,1720427896626,-500.0,0.00034099,35]
[331467892,1720427896672,-3412.95,0.00034099,50]
[331467893,1720427896716,-770.09,0.00034099,38]
[331467894,1720427896764,-500.0,0.00034099,36]
[331467895,1720427896811,-577.77568877,0.00034099,49]
[331467896,1720427896858,-3412.95,0.00034099,51]
[331467897,1720427896905,-770.09,0.00034099,39]
[331467898,1720427896956,-3412.95,0.00034099,52]
[331467899,1720427897005,-770.09,0.00034099,40]
[331467900,1720427897051,-500.0,0.00034099,37]
[331467901,1720427897102,-3412.95983374,0.00034099,53]
[331467902,1720427897151,-770.09,0.00034099,41]
[331467903,1720427897198,-264.61465901,0.00034099,38]
[331467904,1720427897243,-770.09,0.00034099,42]
[331467905,1720427897285,-1404.03,0.00034099,30]
[331467906,1720427897329,-770.09,0.00034099,43]
[331467907,1720427897371,-1404.03,0.00034099,31]
[331467908,1720427897413,-3235.8,0.00034099,30]
[331467909,1720427897456,-770.09,0.00034099,44]
[331467910,1720427897497,-1404.03,0.00034099,32]
[331467911,1720427897540,-3235.8,0.00034099,31]
[331467912,1720427897793,-770.09,0.00034099,45]
[331467913,1720427897841,-1404.03,0.00034099,33]
[331467914,1720427897886,-770.09,0.00034099,46]
[331467915,1720427897935,-1404.03,0.00034099,34]
[331467916,1720427897983,-3235.8,0.00034099,32]
[331467917,1720427898035,-770.09,0.00034099,47]
[331467918,1720427898081,-1404.03,0.00034099,35]
[331467919,1720427898131,-3235.8,0.00034099,33]
[331467920,1720427898183,-770.09,0.00034099,48]
[331467921,1720427898226,-1404.03,0.00034099,36]
[331467922,1720427898271,-3235.8,0.00034099,34]
[331467923,1720427898318,-770.09,0.00034099,49]
[331467924,1720427898365,-1404.03,0.00034099,37]
[331467925,1720427898410,-770.09,0.00034099,50]
[331467926,1720427898455,-770.09,0.00034099,51]
[331467927,1720427898500,-1484.69,0.00034099,30]
[331467928,1720427898544,-3235.8,0.00034099,35]
[331467929,1720427898589,-1404.03,0.00034099,38]
[331467930,1720427898634,-770.09,0.00034099,52]
[331467931,1720427898682,-1484.69,0.00034099,31]
[331467932,1720427898730,-500.0,0.00034099,30]
[331467933,1720427898774,-3235.8,0.00034099,36]
[331467934,1720427898817,-1404.03,0.00034099,39]
[331467935,1720427898862,-1484.69,0.00034099,32]
[331467936,1720427898904,-770.18540674,0.00034099,53]